bitfinex/quotes_BTCUSD_20250124
["timestamp","ask_amount","ask_price","bid_price","bid_amount"]
[1737732847256,0.00072993,105710.0,105700.0,0.54565829]
[1737732847450,0.39383961,105770.0,105720.0,0.15]
[1737732847782,0.00014758,105750.0,105740.0,0.189131]
[1737732848417,0.00014758,105750.0,105740.0,0.19007657]
[1737732849052,0.00014758,105750.0,105740.0,0.28742386]
[1737732849285,0.00014758,105750.0,105740.0,0.28647829]
[1737732851166,0.00014758,105750.0,105740.0,0.43647829]
[1737732851373,0.00014758,105750.0,105740.0,0.51617829]
[1737732851581,0.00014758,105750.0,105740.0,0.56427829]
[1737732852480,0.64063104,105800.0,105780.0,0.330864]
[1737732852695,0.31382318,105800.0,105780.0,0.141796]
[1737732852906,0.31382318,105800.0,105760.0,0.189107]
[1737732852907,0.141791,105790.0,105770.0,0.33182727]
[1737732853140,0.141791,105790.0,105770.0,0.42822929]
[1737732853346,0.69191518,105800.0,105770.0,0.42822929]
[1737732853553,0.69191518,105800.0,105770.0,0.61731829]
[1737732853762,0.50286918,105800.0,105780.0,0.141803]
[1737732854163,0.69191418,105800.0,105770.0,0.61731829]
[1737732854383,0.50286818,105800.0,105770.0,0.42822929]
[1737732854588,0.69191218,105800.0,105770.0,0.42822929]
[1737732854974,0.69191218,105800.0,105770.0,0.61731829]
[1737732855175,0.50286718,105800.0,105780.0,0.141802]
[1737732855535,0.51242205,105800.0,105780.0,0.141802]
[1737732855945,0.18159005,105800.0,105780.0,0.330872]
[1737732856156,0.10089005,105800.0,105780.0,0.330872]
[1737732856372,0.43170405,105800.0,105770.0,0.66690229]
[1737732856675,0.43170405,105800.0,105780.0,0.33181921]
[1737732856676,0.10089005,105800.0,105780.0,0.33181921]
[1737732856915,0.10089005,105800.0,105780.0,0.519945]
[1737732857108,0.10089005,105800.0,105780.0,0.330874]
[1737732857328,0.24266805,105800.0,105780.0,0.330874]
[1737732857489,0.43170405,105800.0,105770.0,0.66690829]
[1737732857695,0.62074905,105800.0,105770.0,0.66690829]
[1737732857909,0.43170405,105800.0,105780.0,0.141803]
[1737732858319,0.10089005,105800.0,105780.0,0.42916456]
[1737732858516,0.00053518,105800.0,105790.0,0.23913729]
[1737732858939,0.15123135,105820.0,105800.0,0.330806]
[1737732859142,0.0096289,105820.0,105800.0,0.330806]
[1737732859345,0.1513809,105820.0,105800.0,0.330806]
[1737732859617,0.141767,105810.0,105790.0,0.14179]
[1737732860024,0.141767,105810.0,105790.0,0.330842]
[1737732860232,1.98499819,105820.0,105790.0,0.330842]
[1737732860499,2.12675919,105820.0,105790.0,0.330842]
[1737732860802,0.04542346,105810.0,105790.0,0.330842]
[1737732861013,0.18718846,105810.0,105790.0,0.14179]
[1737732861219,0.04542346,105810.0,105790.0,0.33178613]
[1737732861423,0.04542346,105810.0,105790.0,0.519892]
[1737732861742,0.04542346,105810.0,105790.0,0.330841]
[1737732861947,0.18718746,105810.0,105780.0,0.410765]
[1737732862158,0.141779,105800.0,105780.0,0.221703]
[1737732862373,0.18720246,105800.0,105780.0,0.1418]
[1737732862598,0.18720246,105800.0,105780.0,0.33181623]
[1737732862796,0.18720246,105800.0,105780.0,0.330871]
[1737732863743,0.37623746,105800.0,105770.0,0.569564]
[1737732863948,0.04542346,105790.0,105770.0,0.47783229]
[1737732864159,0.04542346,105790.0,105770.0,0.66692129]
[1737732864372,0.04542346,105790.0,105780.0,0.141803]
[1737732864592,0.04542346,105790.0,105780.0,0.14274827]
[1737732864796,0.04542346,105790.0,105780.0,0.31739556]
[1737732865003,0.04542346,105790.0,105780.0,0.31645029]
[1737732865210,0.02801095,105810.0,105780.0,0.17464729]
[1737732865424,0.02801095,105810.0,105800.0,0.141776]
[1737732865848,0.02801095,105810.0,105800.0,0.53602329]
[1737732866069,0.00014755,105820.0,105810.0,0.222563]
[1737732866288,0.00014755,105820.0,105810.0,0.31991029]
[1737732866490,0.00014755,105820.0,105810.0,0.38601029]
[1737732867310,0.02719577,105850.0,105820.0,0.15]
[1737732867526,0.02719577,105850.0,105840.0,0.141723]
[1737732867732,0.02719577,105850.0,105830.0,0.519663]
[1737732867942,0.330692,105840.0,105820.0,0.141746]
[1737732868158,0.141727,105840.0,105820.0,0.330745]
[1737732868372,0.141738,105830.0,105810.0,0.376856]
[1737732868592,0.33077,105820.0,105800.0,0.141775]
[1737732868797,0.14175,105820.0,105800.0,0.33095755]
[1737732869004,0.33075,105820.0,105800.0,0.33095755]
[1737732869222,0.141747,105830.0,105810.0,0.141763]
[1737732869424,0.330724,105830.0,105810.0,0.141763]
[1737732870048,0.141751,105820.0,105800.0,0.33094355]
[1737732870279,0.47532529,105830.0,105810.0,0.141762]
[1737732870280,0.61707029,105830.0,105810.0,0.141762]
[1737732870692,0.141737,105830.0,105810.0,0.330779]
[1737732871028,0.67935559,105840.0,105820.0,0.141749]
[1737732871212,0.660146,105850.0,105830.0,0.141735]
[1737732871454,1.924687,105850.0,105830.0,0.141735]
[1737732871659,1.924687,105850.0,105820.0,0.51973]
[1737732871863,0.424687,105850.0,105830.0,0.141736]
[1737732872095,0.424687,105850.0,105820.0,0.51973]
[1737732872316,0.613641,105850.0,105820.0,0.708721]
[1737732872521,0.424687,105850.0,105820.0,0.708719]
[1737732872703,0.413767,105850.0,105830.0,0.141735]
[1737732872906,0.602721,105850.0,105820.0,0.519727]
[1737732873311,0.602721,105850.0,105820.0,0.708718]
[1737732873545,0.602721,105850.0,105830.0,0.141735]
[1737732873749,0.42587335,105850.0,105820.0,0.519727]
[1737732874103,0.61482835,105850.0,105830.0,0.141734]
[1737732874299,0.61482835,105850.0,105820.0,0.519727]
[1737732874553,0.01754395,105840.0,105820.0,0.708717]
[1737732874953,0.141739,105830.0,105810.0,0.23910429]
[1737732875296,0.330721,105830.0,105810.0,0.141757]
[1737732875469,0.330723,105830.0,105810.0,0.141759]
[1737732875669,0.58412195,105840.0,105810.0,0.33171103]
[1737732875877,2.13456924,105840.0,105810.0,0.519772]
[1737732876100,0.61702529,105840.0,105810.0,0.519772]
[1737732876303,0.61702529,105840.0,105820.0,0.141749]
[1737732876831,0.330704,105840.0,105820.0,0.330749]
[1737732877009,0.291734,105840.0,105820.0,0.519749]
[1737732877209,0.480698,105840.0,105820.0,0.330749]
[1737732877408,0.0175756,105830.0,105820.0,0.141749]
[1737732877587,0.0175756,105830.0,105810.0,0.5199146]
[1737732877791,0.2840656,105830.0,105810.0,0.0001416]
[1737732878025,0.6148056,105830.0,105810.0,0.0001416]
[1737732878196,0.4258126,105830.0,105810.0,0.1419036]
[1737732878423,0.6148026,105830.0,105810.0,0.1419036]
[1737732878620,0.6148026,105830.0,105810.0,0.0001416]
[1737732878852,0.14175,105820.0,105810.0,0.0001416]
[1737732879052,0.1593256,105820.0,105810.0,0.0001416]
[1737732879394,0.0175756,105820.0,105810.0,0.0001416]
[1737732879598,0.0175756,105820.0,105810.0,0.1419046]
[1737732879964,0.0175756,105820.0,105810.0,0.0001416]
[1737732880174,0.0175756,105820.0,105810.0,0.1419046]
[1737732880322,0.0175756,105820.0,105810.0,0.0001416]
[1737732880323,0.1593256,105820.0,105810.0,0.0001416]
[1737732880521,0.26209729,105820.0,105810.0,0.0001416]
[1737732881703,0.48959729,105820.0,105810.0,0.0001416]
[1737732882393,0.50119216,105820.0,105810.0,0.0001416]
[1737732882597,0.51119216,105820.0,105810.0,0.0001416]
[1737732883323,0.50119216,105820.0,105810.0,0.0001416]
[1737732883636,0.51119216,105820.0,105810.0,0.0001416]
[1737732884494,0.314763,105810.0,105800.0,0.0001097]
[1737732884771,0.48139823,105810.0,105800.0,7e-07]
[1737732884992,0.141836,105760.0,105740.0,0.22623278]
[1737732885200,0.189091,105770.0,105740.0,0.44473428]
[1737732885201,0.389112,105770.0,105740.0,0.44473428]
[1737732885407,0.53094,105770.0,105740.0,0.44472428]
[1737732885642,0.53094,105770.0,105740.0,0.63385628]
[1737732885852,0.141831,105760.0,105740.0,0.44472328]
[1737732886057,0.330939,105760.0,105740.0,0.44472328]
[1737732886302,0.330939,105760.0,105740.0,0.44521542]
[1737732886587,0.01760851,105750.0,105740.0,0.25608342]
[1737732887604,0.141831,105760.0,105740.0,0.44521642]
[1737732888190,0.530941,105770.0,105740.0,0.44521642]
[1737732888399,0.330942,105760.0,105740.0,0.44521642]
[1737732888616,0.330942,105760.0,105740.0,0.08486892]
[1737732888617,0.141843,105750.0,105740.0,0.08486892]
[1737732888883,0.567348,105760.0,105740.0,0.14248874]
[1737732888884,0.42829529,105760.0,105740.0,0.14248874]
[1737732889067,0.35387982,105770.0,105750.0,0.330963]
[1737732889221,0.35387982,105770.0,105750.0,0.330962]
[1737732889624,0.35387982,105770.0,105750.0,0.141839]
[1737732889880,0.35387982,105770.0,105750.0,0.1427845]
[1737732890632,0.378158,105780.0,105750.0,0.3319095]
[1737732891001,0.141818,105770.0,105750.0,0.520089]
[1737732891185,0.34277289,105780.0,105760.0,0.330931]
[1737732891362,1.355463,105790.0,105760.0,0.407131]
[1737732891568,0.42821029,105790.0,105770.0,0.330902]
[1737732891918,0.330861,105790.0,105770.0,0.330901]
[1737732892143,0.858098,105800.0,105780.0,0.141803]
[1737732892343,0.658132,105800.0,105780.0,0.330874]
[1737732892519,0.3273,105800.0,105780.0,0.330873]
[1737732892665,0.469079,105800.0,105780.0,0.330873]
[1737732892860,0.469079,105800.0,105780.0,0.519943]
[1737732893065,0.658114,105800.0,105780.0,0.330873]
[1737732893277,0.65826133,105800.0,105780.0,0.330873]
[1737732893876,0.84730533,105800.0,105780.0,0.141803]
[1737732894331,0.65826133,105800.0,105780.0,0.330871]
[1737732896770,0.32744733,105800.0,105780.0,0.519933]
[1737732897117,0.32744733,105800.0,105790.0,0.14179]
[1737732897394,0.00014733,105800.0,105790.0,0.14179]
[1737732898412,0.00014733,105800.0,105790.0,0.18889]
[1737732898630,0.00014733,105800.0,105790.0,0.28718246]
[1737732898837,0.00014733,105800.0,105790.0,0.28623729]
[1737732899046,0.00014733,105800.0,105790.0,0.36703729]
[1737732899786,0.00014733,105800.0,105790.0,0.1279]
[1737732899993,0.33095933,105800.0,105780.0,0.330874]
[1737732900192,0.00014733,105800.0,105780.0,0.519935]
[1737732900396,0.00014733,105800.0,105790.0,0.14179]
[1737732900595,0.00014733,105800.0,105780.0,0.61726829]
[1737732900798,0.141796,105790.0,105770.0,0.459587]
[1737732900976,0.141803,105780.0,105760.0,0.52003]
[1737732901178,0.141803,105780.0,105760.0,0.330924]
[1737732901386,0.330874,105780.0,105760.0,0.141829]
[1737732902008,0.330874,105780.0,105750.0,0.77441678]
[1737732902218,0.141818,105770.0,105750.0,0.82448707]
[1737732902418,0.519973,105780.0,105760.0,0.14183]
[1737732902634,0.519968,105780.0,105750.0,0.82448607]
[1737732902845,0.519968,105780.0,105750.0,1.01360107]
[1737732903045,0.519968,105780.0,105760.0,0.141827]
[1737732903250,0.519968,105780.0,105760.0,0.330934]
[1737732903465,0.519968,105780.0,105750.0,0.68265007]
[1737732903680,0.330909,105770.0,105750.0,0.72713378]
[1737732903885,0.330909,105770.0,105740.0,0.3311196]
[1737732903886,0.14183,105760.0,105740.0,0.3311196]
[1737732904083,0.330939,105760.0,105740.0,0.42846689]
[1737732904297,0.141843,105750.0,105740.0,0.0001416]
[1737732904494,0.567353,105760.0,105740.0,0.1419956]
[1737732904709,0.520067,105760.0,105740.0,0.0001416]
[1737732904959,0.520067,105760.0,105740.0,0.1419976]
[1737732905132,0.520067,105760.0,105740.0,0.33163074]
[1737732905336,0.330945,105760.0,105740.0,0.33163074]
[1737732905745,0.520062,105760.0,105740.0,0.33163074]
[1737732906362,0.141843,105750.0,105740.0,0.00063374]
[1737732906982,0.141842,105760.0,105740.0,0.33163174]
[1737732907181,0.658225,105770.0,105750.0,0.141841]
[1737732907387,0.141832,105760.0,105740.0,0.52075474]
[1737732907596,0.330939,105760.0,105740.0,0.52076374]
[1737732907798,0.94467329,105770.0,105750.0,0.141843]
[1737732908010,1.13377529,105770.0,105750.0,0.141843]
[1737732908218,0.141832,105760.0,105740.0,0.52075474]
[1737732908419,0.14183,105760.0,105750.0,0.141842]
[1737732908855,0.95559329,105770.0,105750.0,0.141842]
[1737732909055,0.35281965,105770.0,105760.0,0.14183]
[1737732909263,0.33822,105770.0,105760.0,0.14183]
[1737732909866,0.43276758,105800.0,105780.0,0.330866]
[1737732910083,0.73397137,105800.0,105780.0,0.330866]
[1737732910291,0.91209837,105800.0,105780.0,0.330866]
[1737732910506,0.15,105790.0,105780.0,0.330866]
[1737732910710,0.44757908,105800.0,105780.0,0.519928]
[1737732910918,0.43665908,105800.0,105780.0,0.330859]
[1737732911126,0.62585341,105800.0,105780.0,0.141796]
[1737732911332,0.62585341,105800.0,105770.0,0.600056]
[1737732911333,0.14179,105790.0,105770.0,0.600056]
[1737732911545,0.62585341,105800.0,105780.0,0.141803]
[1737732911758,0.15704441,105800.0,105790.0,0.14179]
[1737732911960,0.00044491,105800.0,105790.0,0.14179]
[1737732912644,0.14222091,105800.0,105780.0,0.519924]
[1737732912851,0.14179,105790.0,105770.0,0.50833029]
[1737732913055,0.141803,105780.0,105770.0,0.221909]
[1737732913209,0.189055,105790.0,105760.0,0.616195]
[1737732913412,0.141805,105780.0,105770.0,0.141817]
[1737732913620,0.378122,105790.0,105760.0,0.52458019]
[1737732913820,0.519922,105790.0,105760.0,0.52457819]
[1737732914025,0.141809,105780.0,105770.0,0.141817]
[1737732914394,0.141809,105780.0,105760.0,0.5690519]
[1737732914597,0.330881,105780.0,105760.0,0.3799559]
[1737732914807,0.51996,105780.0,105760.0,0.3799559]
[1737732915013,0.330881,105780.0,105760.0,0.5690539]
[1737732915215,0.330881,105780.0,105760.0,0.3799559]
[1737732915420,0.141809,105780.0,105770.0,0.141817]
[1737732915634,0.141809,105780.0,105760.0,0.5690619]
[1737732915635,0.330876,105780.0,105760.0,0.5690499]
[1737732915843,0.141817,105770.0,105760.0,0.0001419]
[1737732916288,0.141817,105770.0,105760.0,0.1419719]
[1737732916487,0.330885,105780.0,105760.0,0.5201849]
[1737732916693,0.519929,105790.0,105770.0,0.141816]
[1737732916895,0.61727629,105790.0,105770.0,0.141814]
[1737732917017,0.141804,105780.0,105760.0,0.5201659]
[1737732917221,0.330883,105780.0,105760.0,0.1419719]
[1737732917424,0.330883,105780.0,105760.0,0.0001419]
[1737732917425,0.141817,105770.0,105760.0,0.0001419]
[1737732918402,0.23916429,105770.0,105760.0,0.0001419]
[1737732918617,0.41216429,105770.0,105760.0,0.0001419]
[1737732918830,0.49196429,105770.0,105760.0,0.0001419]
[1737732920576,0.291817,105770.0,105760.0,0.1419719]
[1737732920784,0.291817,105770.0,105760.0,0.0001419]
[1737732921525,1.721873,105780.0,105760.0,0.3310789]
[1737732921737,1.81922029,105780.0,105760.0,0.3310789]
[1737732922364,1.81922029,105780.0,105760.0,0.5201859]
[1737732922785,1.81922029,105780.0,105760.0,0.3310789]
[1737732922982,1.81922029,105780.0,105760.0,0.5201779]
[1737732923701,1.2019,105780.0,105770.0,0.141817]
[1737732924659,1.202198,105780.0,105770.0,0.141817]
[1737732927030,0.000298,105780.0,105770.0,0.141817]
[1737732927234,0.000298,105780.0,105770.0,0.14276238]
[1737732927440,0.000298,105780.0,105770.0,0.21906238]
[1737732927607,0.000298,105780.0,105770.0,0.218117]
[1737732928881,0.000298,105780.0,105770.0,0.31546429]
[1737732929302,0.000298,105780.0,105770.0,0.51276429]
[1737732929506,0.000298,105780.0,105770.0,0.54214672]
[1737732930161,0.000298,105780.0,105770.0,0.51276429]
[1737732930379,0.000298,105780.0,105770.0,0.265417]
[1737732930589,0.142101,105780.0,105760.0,0.7092719]
[1737732930800,0.331173,105780.0,105760.0,0.3310669]
[1737732931004,0.331173,105780.0,105760.0,0.5201649]
[1737732931211,0.331173,105780.0,105770.0,0.141817]
[1737732931212,0.142101,105780.0,105770.0,0.141817]
[1737732931443,0.331177,105780.0,105760.0,0.3310669]
[1737732931857,0.142101,105780.0,105760.0,0.5201649]
[1737732933290,0.142103,105780.0,105760.0,0.60454168]
[1737732933440,0.142103,105780.0,105760.0,0.79364068]
[1737732933631,0.142103,105780.0,105760.0,0.79363968]
[1737732933828,0.142103,105780.0,105760.0,0.60454168]
[1737732934450,0.142103,105780.0,105770.0,0.141817]
[1737732934648,0.000298,105780.0,105770.0,0.141817]
[1737732935470,0.142103,105780.0,105760.0,0.60454068]
[1737732935673,0.000298,105780.0,105770.0,0.141817]
[1737732936426,0.142103,105780.0,105760.0,0.5201649]
[1737732936665,0.142103,105780.0,105760.0,0.5201639]
[1737732937028,0.142103,105780.0,105760.0,0.7092609]
[1737732937447,0.000298,105780.0,105770.0,0.141817]
[1737732938243,0.000298,105780.0,105770.0,0.14276241]
[1737732939895,0.000298,105780.0,105770.0,0.2401097]
[1737732940076,0.000298,105780.0,105770.0,0.36516429]
[1737732940520,0.000298,105780.0,105770.0,0.39457748]
[1737732940934,0.000298,105780.0,105770.0,0.267817]
[1737732942412,0.000298,105780.0,105770.0,0.188717]
[1737732942613,0.000298,105780.0,105770.0,0.141817]
[1737732943065,0.000298,105780.0,105770.0,0.14276239]
[1737732944719,0.000298,105780.0,105770.0,0.24010968]
[1737732944894,0.000298,105780.0,105770.0,0.23916429]
[1737732945670,0.000298,105780.0,105770.0,0.46799362]
[1737732946268,0.000298,105780.0,105770.0,0.31799362]
[1737732946892,0.000298,105780.0,105770.0,0.33158716]
[1737732947246,0.000298,105780.0,105770.0,0.55998716]
[1737732947993,0.000298,105780.0,105770.0,0.57998716]
[1737732949410,0.000298,105780.0,105770.0,0.55998716]
[1737732952555,0.00044491,105800.0,105790.0,0.36899]
[1737732952758,0.00044491,105800.0,105790.0,0.49576662]
[1737732952960,0.24828152,105830.0,105790.0,0.49576662]
[1737732953156,0.24828152,105830.0,105820.0,0.14175]
[1737732953396,0.24828152,105830.0,105810.0,0.141761]
[1737732953397,0.14175,105820.0,105810.0,0.141761]
[1737732953600,0.72362681,105830.0,105810.0,0.330773]
[1737732953805,0.91262081,105830.0,105810.0,0.330773]
[1737732954234,1.5,105820.0,105810.0,0.330773]
[1737732954456,1.5,105820.0,105810.0,0.189015]
[1737732954661,0.91262081,105830.0,105810.0,0.330775]
[1737732954885,0.330752,105820.0,105800.0,0.519806]
[1737732955108,0.519761,105820.0,105800.0,0.330785]
[1737732955332,0.141763,105810.0,105800.0,0.330785]
[1737732955531,0.378011,105820.0,105800.0,0.330785]
[1737732955826,1.5,105810.0,105800.0,0.330785]
[1737732956242,0.141763,105810.0,105800.0,0.141767]
[1737732956453,0.330784,105810.0,105790.0,0.519874]
[1737732956662,0.42813129,105810.0,105790.0,0.330829]
[1737732956862,0.61715829,105810.0,105790.0,0.330829]
[1737732957281,0.42813129,105810.0,105790.0,0.519874]
[1737732957483,0.01088,105820.0,105810.0,0.141763]
[1737732957935,0.15263,105820.0,105810.0,0.141763]
[1737732958137,0.330752,105820.0,105800.0,0.708858]
[1737732958364,0.330752,105820.0,105800.0,0.519824]
[1737732958494,0.330752,105820.0,105800.0,0.708848]
[1737732958702,0.42809929,105820.0,105800.0,0.519832]
[1737732958893,0.61710929,105820.0,105800.0,0.519832]
[1737732959543,0.42809929,105820.0,105800.0,0.519832]
[1737732959912,0.61710729,105820.0,105800.0,0.519832]
[1737732960314,0.42809929,105820.0,105800.0,0.70886]
[1737732960539,1.14288052,105830.0,105810.0,0.33078]
[1737732960742,1.24022781,105830.0,105810.0,0.33078]
[1737732961190,1.05122881,105830.0,105810.0,0.33078]
[1737732961371,0.86222981,105830.0,105810.0,0.33078]
[1737732961616,0.85134981,105830.0,105810.0,0.33078]
[1737732961784,1.04033981,105830.0,105810.0,0.519791]
[1737732961990,0.000298,105830.0,105820.0,0.14175]
[1737732962538,0.000298,105830.0,105820.0,0.14269497]
[1737732962743,0.000298,105830.0,105820.0,0.14175]
[1737732962951,0.000298,105830.0,105820.0,0.19129487]
[1737732963156,0.000298,105830.0,105820.0,0.14175]
[1737732963805,0.000298,105830.0,105820.0,0.24004221]
[1737732964012,0.000298,105830.0,105820.0,0.23909729]
[1737732965888,0.000298,105830.0,105820.0,0.5478058]
[1737732969520,0.000298,105830.0,105820.0,0.56086236]
[1737732971014,0.000298,105830.0,105820.0,0.64523914]
[1737732971219,0.000298,105830.0,105820.0,0.66406799]
[1737732971426,0.000298,105830.0,105820.0,0.63485948]
[1737732972240,0.000298,105830.0,105820.0,0.66399842]
[1737732972520,0.23229636,105870.0,105850.0,0.519574]
[1737732972695,0.09061336,105870.0,105860.0,0.141696]
[1737732972906,0.09076088,105870.0,105860.0,0.141696]
[1737732973168,0.09076088,105870.0,105850.0,0.519567]
[1737732973353,0.09076088,105870.0,105860.0,0.141696]
[1737732973677,1.59076088,105870.0,105860.0,0.141696]
[1737732974178,0.09076088,105870.0,105860.0,0.141696]
[1737732974560,0.61027588,105870.0,105850.0,0.141707]
[1737732974767,0.141697,105860.0,105840.0,0.519618]
[1737732974963,0.141697,105860.0,105840.0,0.61696529]
[1737732974964,0.330625,105860.0,105840.0,0.61696529]
[1737732975132,0.141697,105860.0,105840.0,0.80592829]
[1737732975328,0.141697,105860.0,105840.0,0.330662]
[1737732975329,0.330626,105860.0,105840.0,0.330662]
[1737732975573,0.406726,105860.0,105840.0,0.330662]
[1737732975812,0.406726,105860.0,105840.0,0.519618]
[1737732975947,0.406726,105860.0,105840.0,0.330662]
[1737732976142,0.141712,105850.0,105830.0,0.330689]
[1737732976345,0.42802229,105850.0,105830.0,0.141736]
[1737732976545,0.141726,105840.0,105820.0,0.51972]
[1737732976750,0.141737,105830.0,105810.0,0.41513478]
[1737732976955,0.14175,105820.0,105810.0,0.08437678]
[1737732977175,0.669731,105830.0,105810.0,0.22613978]
[1737732977397,0.858726,105830.0,105810.0,0.08437678]
[1737732977809,0.669731,105830.0,105810.0,0.08437678]
[1737732978009,0.669731,105830.0,105810.0,0.141763]
[1737732978623,0.480737,105830.0,105810.0,0.33078]
[1737732978831,0.412104,105840.0,105820.0,0.141748]
[1737732979030,0.22327144,105840.0,105820.0,0.330735]
[1737732979238,0.00014744,105840.0,105830.0,0.141736]
[1737732979907,0.33083644,105840.0,105820.0,0.330735]
[1737732980119,0.51981244,105840.0,105820.0,0.141748]
[1737732980337,0.51982244,105840.0,105820.0,0.141748]
[1737732980675,0.51982144,105840.0,105820.0,0.141748]
[1737732980924,0.33084644,105840.0,105820.0,0.330747]
[1737732981126,0.51981844,105840.0,105820.0,0.141748]
[1737732982237,0.51981844,105840.0,105820.0,0.330747]
[1737732982414,0.14188044,105840.0,105820.0,0.519735]
[1737732982613,0.14188044,105840.0,105820.0,0.519726]
[1737732982871,0.14188044,105840.0,105830.0,0.141736]
[1737732983073,0.00014744,105840.0,105830.0,0.141736]
[1737732983276,0.33083644,105840.0,105820.0,0.330736]
[1737732983540,0.51980844,105840.0,105820.0,0.330736]
[1737732983761,0.33083644,105840.0,105820.0,0.519728]
[1737732984959,0.330722,105830.0,105810.0,0.6485028]
[1737732985164,0.330722,105830.0,105810.0,0.0001418]
[1737732985165,0.14175,105820.0,105810.0,0.0001418]
[1737732985375,0.47532629,105830.0,105810.0,0.1419048]
[1737732985575,0.61707329,105830.0,105810.0,0.1419048]
[1737732985860,0.0785,105820.0,105810.0,0.0001418]
[1737732986060,0.31759729,105820.0,105810.0,0.0001418]
[1737732986562,0.34059729,105820.0,105810.0,0.0001418]
[1737732987784,0.31759729,105820.0,105810.0,0.0001418]
[1737732987989,0.530606,105830.0,105810.0,0.0001418]
[1737732988196,0.14175,105820.0,105810.0,0.0001418]
[1737732989562,0.14175,105820.0,105800.0,0.33082516]
[1737732989779,0.14175,105820.0,105800.0,0.51986016]
[1737732990385,0.83001996,105830.0,105800.0,0.51986016]
[1737732990594,0.64102196,105830.0,105800.0,0.70888616]
[1737732990821,0.01306867,105830.0,105810.0,0.33077]
[1737732991031,0.00014744,105840.0,105830.0,0.141736]
[1737732991463,0.00014744,105840.0,105830.0,0.23908329]
[1737732991882,0.00014744,105840.0,105830.0,0.31788329]
[1737732994047,0.00014744,105840.0,105830.0,0.220536]
[1737732994264,0.00014744,105840.0,105830.0,0.141736]
[1737732994480,0.00014744,105840.0,105830.0,0.24002816]
[1737732994684,0.00014744,105840.0,105830.0,0.23908329]
[1737732994911,0.00014744,105840.0,105830.0,0.31788329]
[1737732996380,0.00044544,105840.0,105830.0,0.31788329]
[1737732998584,0.00044544,105840.0,105830.0,0.32979347]
[1737733000291,0.00044544,105840.0,105830.0,0.34886142]
[1737733002983,0.00044544,105840.0,105830.0,0.32979347]
[1737733003196,0.00044544,105840.0,105820.0,0.519722]
[1737733003617,0.00044544,105840.0,105830.0,0.141736]
[1737733003958,0.00044544,105840.0,105820.0,0.708711]
[1737733003959,0.14216844,105840.0,105820.0,0.708711]
[1737733004159,0.00044544,105840.0,105830.0,0.141736]
[1737733004359,0.14216844,105840.0,105820.0,0.708711]
[1737733004646,0.14216844,105840.0,105820.0,0.519722]
[1737733004864,0.00044544,105840.0,105820.0,0.519722]
[1737733005066,0.00044544,105840.0,105830.0,0.141736]
[1737733005416,0.00044544,105840.0,105820.0,0.519722]
[1737733005617,0.00044544,105840.0,105830.0,0.141736]
[1737733006169,0.14216844,105840.0,105820.0,0.519722]
[1737733006521,0.00044544,105840.0,105830.0,0.141736]
[1737733006746,0.00044544,105840.0,105830.0,0.2400281]
[1737733006954,0.00044544,105840.0,105830.0,0.23908329]
[1737733010277,0.00044544,105840.0,105830.0,0.38908329]
[1737733010811,0.00044544,105840.0,105830.0,0.40836153]
[1737733011838,0.00049544,105840.0,105830.0,0.40836153]
[1737733013106,0.54429933,105870.0,105850.0,0.330638]
[1737733013307,0.64164662,105870.0,105850.0,0.330638]
[1737733013517,0.45272762,105870.0,105850.0,0.519577]
[1737733013712,2.205514,105880.0,105860.0,0.141696]
[1737733013922,0.141683,105870.0,105850.0,0.519575]
[1737733014168,0.330594,105870.0,105850.0,0.519574]
[1737733014390,2.1249427,105880.0,105850.0,0.519574]
[1737733014629,2.0777157,105880.0,105860.0,0.519549]
[1737733014895,0.5777147,105880.0,105860.0,0.330621]
[1737733015118,0.09014741,105880.0,105870.0,0.141683]
[1737733016267,0.09019741,105880.0,105870.0,0.141683]
[1737733020127,0.09049541,105880.0,105870.0,0.141683]
[1737733021300,0.23217141,105880.0,105860.0,0.410009]
[1737733021502,0.42106441,105880.0,105860.0,0.59893]
[1737733022164,0.42106441,105880.0,105860.0,0.410009]
[1737733022317,0.42106441,105880.0,105860.0,0.59893]
[1737733022318,0.23217141,105880.0,105860.0,0.59893]
[1737733023061,0.42106441,105880.0,105860.0,0.59893]
[1737733023268,0.42106441,105880.0,105860.0,0.598937]
[1737733023478,0.5656447,105880.0,105850.0,0.412331]
[1737733023730,0.7073207,105880.0,105860.0,0.141695]
[1737733023908,0.7073207,105880.0,105850.0,0.601264]
[1737733024117,0.330597,105870.0,105850.0,0.601264]
[1737733024320,0.330597,105870.0,105850.0,0.412331]
[1737733024521,0.330597,105870.0,105850.0,0.601277]
[1737733024730,0.141686,105870.0,105850.0,0.790223]
[1737733024949,0.141686,105870.0,105850.0,0.601277]
[1737733025090,0.330597,105870.0,105850.0,0.601277]
[1737733025286,0.330597,105870.0,105850.0,0.601269]
[1737733025684,0.330597,105870.0,105850.0,0.412331]
[1737733025884,0.330597,105870.0,105850.0,0.60127]
[1737733026091,0.330597,105870.0,105850.0,0.412331]
[1737733026553,0.330597,105870.0,105850.0,0.601277]
[1737733026752,0.330597,105870.0,105850.0,0.412331]
[1737733027579,0.141696,105860.0,105850.0,0.0817]
[1737733027788,0.519561,105860.0,105840.0,0.330663]
[1737733028018,0.61687329,105870.0,105850.0,0.141709]
[1737733028234,0.61687329,105870.0,105840.0,0.519616]
[1737733028443,0.61687329,105870.0,105850.0,0.141708]
[1737733028849,0.61687329,105870.0,105850.0,0.330652]
[1737733029433,0.42795229,105870.0,105840.0,0.377902]
[1737733029676,0.330629,105860.0,105840.0,0.519617]
[1737733029804,0.330629,105860.0,105840.0,0.330677]
[1737733030018,0.61692129,105860.0,105840.0,0.141722]
[1737733030247,0.61692129,105860.0,105840.0,0.330685]
[1737733030515,0.42798129,105860.0,105840.0,0.330685]
[1737733031451,0.42798129,105860.0,105840.0,0.519641]
[1737733031676,0.330629,105860.0,105840.0,0.519641]
[1737733031881,0.330629,105860.0,105840.0,0.330678]
[1737733032082,0.330629,105860.0,105840.0,0.519635]
[1737733032286,0.330629,105860.0,105840.0,0.330678]
[1737733032492,0.330629,105860.0,105840.0,0.5197768]
[1737733032822,0.330629,105860.0,105840.0,0.3308198]
[1737733033275,0.377869,105860.0,105840.0,0.0001418]
[1737733033419,0.141709,105850.0,105840.0,0.0001418]